fUSD/lending_fUSD_20240823
["ID","MTS","AMOUNT","RATE_DAILY","PERIOD"]
[335610137,1724381444996,-185.8296588,0.000109,2]
[335610138,1724381445005,-9048.10169226,0.00010911,2]
[335610139,1724381445014,-283.437389,0.00010958,2]
[335610140,1724381445023,-172.900637,0.00010958,2]
[335610141,1724381445032,-275.457532,0.00010958,2]
[335610142,1724381445042,-500.0,0.00010958,2]
[335610143,1724381445051,-298.05698369,0.00010958,2]
[335610144,1724381445063,-276.49301631,0.00010958,2]
[335610145,1724381445072,-124.98591034,0.00010958,2]
[335610147,1724381446669,-443.57408966,0.00010958,2]
[335610148,1724381446679,-500.0,0.00010958,2]
[335610149,1724381446688,-199.83110034,0.00010958,2]
[335610150,1724381446699,-944.32889966,0.00010958,2]
[335610151,1724381446708,-199.07629034,0.00010958,2]
[335610152,1724381446719,-300.92370966,0.00010958,2]
[335610153,1724381446729,-307.43341983,0.00010958,2]
[335610154,1724381446864,-192.56658017,0.00010958,2]
[335610155,1724381446873,-93.0000796,0.00010958,2]
[335610158,1724381463590,500.0,9.9e-05,3]
[335610159,1724381465684,1000.0,0.0001,3]
[335610165,1724381663995,167.68,9.951e-05,2]
[335610166,1724381748449,301.81,8.219e-05,2]
[335610167,1724381824916,3093.76,9.97e-05,2]
[335610168,1724381831035,155.0,0.00010009,2]
[335610169,1724381866791,252.83,9.967e-05,2]
[335610170,1724381879495,155.40847977,0.00010009,2]
[335610172,1724381990863,880.0,9.956e-05,2]
[335610173,1724382138028,167.72,9.966e-05,2]
[335610174,1724382253377,286.71,8.219e-05,2]
[335610178,1724382434362,400.0,9.9e-05,3]
[335610179,1724382436630,900.0,0.0001,3]
[335610180,1724382461966,758.66213651,0.00010009,2]
[335610181,1724382490131,296.0,9.905e-05,2]
[335610182,1724382500128,252.83,9.905e-05,2]
[335610183,1724382588027,1050.0,0.0001,2]
[335610187,1724382631557,-748.08845602,0.0001006,2]
[335610210,1724382631793,-295.44814184,0.0001006,2]
[335610211,1724382631804,-968.61574791,0.0001006,2]
[335610212,1724382631815,-365.06759219,0.0001006,2]
[335610213,1724382631826,-882.82006204,0.0001006,2]
[335610214,1724382631835,-896.1257819,0.000101,3]
[335610215,1724382631846,-403.8742181,0.000101,3]
[335610216,1724382631856,-1800.0,0.000102,3]
[335610217,1724382631865,-1032.06189215,0.000103,3]
[335610220,1724382637871,-1167.93810785,0.000103,3]
[335610221,1724382637881,-400.0,0.000104,3]
[335610222,1724382637890,-286.71,0.00010473,2]
[335610223,1724382637899,-400.0,0.000105,3]
[335610224,1724382637908,-228.52699082,0.00010505,2]
[335610225,1724382637918,-5256.65569374,0.00010505,2]
[335610226,1724382637927,-234.0,0.00010565,2]
[335610227,1724382637937,-3795.6233293,0.00010566,2]
[335610228,1724382637948,-1721.31030779,0.00010566,2]
[335610229,1724382637957,-550.89,0.000106,2]
[335610230,1724382637967,-400.0,0.000106,3]
[335610231,1724382637976,-499.99,0.00010632,2]
[335610232,1724382637986,-1649.94058396,0.00010699,2]
[335610233,1724382637995,-1276.21844793,0.00010699,2]
[335610234,1724382638004,-400.0,0.000107,3]
[335610235,1724382638014,-1227.44876445,0.00010799,2]
[335610236,1724382638023,-1094.48555958,0.00010799,2]
[335610237,1724382638033,-796.08627949,0.00010799,2]
[335610238,1724382638042,-800.0,0.000108,3]
[335610239,1724382638051,-516.13059219,0.00010852,2]
[335610240,1724382638061,-486.27391556,0.00010861,2]
[335610241,1724382638070,-358.10515509,0.00010861,2]
[335610242,1724382638079,-653.52206406,0.00010862,2]
[335610243,1724382638088,-291.66242695,0.00010862,2]
[335610244,1724382638097,-298.59101924,0.00010862,2]
[335610245,1724382638107,-219.05448022,0.00010862,2]
[335610246,1724382638116,-155.0,0.00010862,2]
[335610248,1724382638125,-283.92910122,0.00010862,2]
[335610250,1724382638134,-204.1551957,0.00010862,2]
[335610252,1724382638143,-155.2635198,0.00010862,2]
[335610253,1724382638153,-956.91482638,0.00010883,2]
[335610255,1724382638162,-433.20023883,0.00010888,2]
[335610258,1724382638173,-273.37441322,0.00010888,2]
[335610260,1724382638182,-155.69362246,0.00010888,2]
[335610262,1724382638192,-150.0,0.00010889,2]
[335610264,1724382638201,-629.05909233,0.00010949,2]
[335610265,1724382638210,-309.52712934,0.00010958,2]
[335610267,1724382638219,-200.0,0.00010958,2]
[335610269,1724382638227,-500.0,0.00010958,2]
[335610271,1724382638237,-200.0,0.00010958,2]
[335610273,1724382638246,-500.0,0.00010958,2]
[335610275,1724382638255,-237.83945118,0.00010958,2]
[335610277,1724382638264,-833.78,0.00010958,2]
[335610279,1724382638274,-333.43,0.00010959,2]
[335610281,1724382638283,-150.61,0.00010959,2]
[335610283,1724382638292,-250.0,0.00010959,2]
[335610285,1724382638301,-5274.0270912,0.00010983,2]
[335610287,1724382638311,-809.7357223,0.00010983,2]
[335610289,1724382638320,-2535.6971142,0.00010983,2]
[335610291,1724382638329,-150.21144724,0.00010988,2]
[335610293,1724382638338,-484.37879853,0.00010988,2]
[335610295,1724382638348,-500.0,0.00010988,2]
[335610297,1724382638357,-500.0,0.00010988,2]
[335610299,1724382638365,-500.0,0.00010988,2]
[335610301,1724382638374,-838.2120902,0.00010989,2]
[335610303,1724382638383,-500.0,0.00010989,2]
[335610305,1724382638392,-500.0,0.00010989,2]
[335610307,1724382638401,-500.0,0.00010989,2]
[335610309,1724382638410,-500.0,0.00010989,2]
[335610311,1724382638419,-500.0,0.00010989,2]
[335610313,1724382638428,-900.0,0.00010989,2]
[335610315,1724382638437,-544.87,0.00010989,2]
[335610317,1724382638447,-544.87,0.00010989,2]
[335610319,1724382638456,-544.87,0.00010989,2]
[335610321,1724382638465,-544.87,0.00010989,2]
[335610323,1724382638474,-544.87,0.00010989,2]
[335610325,1724382638483,-500.0,0.00010989,2]
[335610326,1724382638492,-500.0,0.00010989,2]
[335610328,1724382638500,-500.87840335,0.00010989,2]
[335610330,1724382638509,-500.0,0.00010989,2]
[335610332,1724382638518,-500.0,0.00010989,2]
[335610334,1724382638527,-833.78,0.00010989,2]
[335610335,1724382638537,-833.78,0.00010989,2]
[335610336,1724382638546,-833.78,0.00010989,2]
[335610337,1724382638555,-833.78,0.00010989,2]
[335610338,1724382638565,-833.78,0.00010989,2]
[335610339,1724382638574,-600.37321192,0.00010989,2]
[335610340,1724382638583,-500.0,0.00010989,2]
[335610341,1724382638593,-500.0,0.00010989,2]
[335610342,1724382638602,-500.0,0.00010989,2]
[335610343,1724382638611,-500.0,0.00010989,2]
[335610344,1724382638620,-145.57272159,0.00010989,2]
[335610345,1724382638632,-354.42727841,0.00010989,2]
[335610346,1724382638642,-500.0,0.00010989,2]
[335610347,1724382638651,-500.0,0.00010989,2]
[335610348,1724382638660,-623.18302892,0.00010989,2]
[335610349,1724382638669,-500.0,0.00010989,2]
[335610350,1724382638678,-500.0,0.00010989,2]
[335610351,1724382638687,-500.0,0.00010989,2]
[335610352,1724382638696,-255.90883455,0.00010989,2]
[335610353,1724382638707,-244.09116545,0.00010989,2]
[335610354,1724382638717,-500.0,0.00010989,2]
[335610355,1724382638726,-550.61,0.00010989,2]
[335610356,1724382638735,-550.61,0.00010989,2]
[335610357,1724382638744,-550.61,0.00010989,2]
[335610359,1724382638753,-550.61,0.00010989,2]
[335610361,1724382638762,-550.61,0.00010989,2]
[335610363,1724382638772,-500.0,0.00010989,2]
[335610364,1724382638781,-158.6329,0.00010989,2]
[335610366,1724382638790,-500.0,0.00010989,2]
[335610368,1724382638800,-500.0,0.00010989,2]
[335610370,1724382638809,-521.95401307,0.00010989,2]
[335610372,1724382638822,-1200.51,0.00010989,2]
[335610374,1724382638831,-1200.51,0.00010989,2]
[335610376,1724382638841,-1200.51,0.00010989,2]
[335610378,1724382638850,-1200.51,0.00010989,2]
[335610380,1724382638859,-1200.51,0.00010989,2]
[335610382,1724382638867,-500.0,0.00010989,2]
[335610384,1724382638876,-500.0,0.00010989,2]
[335610386,1724382638886,-500.0,0.00010989,2]
[335610388,1724382638895,-500.0,0.00010989,2]
[335610390,1724382638904,-500.0,0.00010989,2]
[335610392,1724382638913,-500.0,0.00010989,2]
[335610394,1724382638922,-483.5947765,0.00010989,2]
[335610396,1724382638931,-500.0,0.00010989,2]
[335610397,1724382638943,-500.0,0.00010989,2]
[335610399,1724382638952,-500.0,0.00010989,2]
[335610401,1724382638961,-581.91809574,0.00010989,2]
[335610403,1724382638970,-508.65,0.00010989,2]
[335610405,1724382638980,-184.712996,0.00010989,2]
[335610407,1724382638990,-508.65,0.00010989,2]
[335610409,1724382638999,-508.65,0.00010989,2]
[335610411,1724382639007,-184.712996,0.00010989,2]
[335610413,1724382639017,-508.65,0.00010989,2]
[335610415,1724382639027,-508.65,0.00010989,2]
[335610417,1724382639036,-184.712996,0.00010989,2]
[335610419,1724382639045,-184.712996,0.00010989,2]
[335610421,1724382639054,-500.0,0.00010989,2]
[335610423,1724382639066,-500.0,0.00010989,2]
[335610425,1724382639075,-500.0,0.00010989,2]
[335610427,1724382639084,-500.0,0.00010989,2]
[335610429,1724382639093,-800.0,0.00010989,2]
[335610431,1724382639103,-2111.58,0.00010989,2]
[335610433,1724382639113,-59.05142375,0.00010989,2]
[335610436,1724382639133,-2052.52857625,0.00010989,2]
[335610438,1724382639143,-2111.58,0.00010989,2]
[335610440,1724382639152,-165.483194,0.00010989,2]
[335610442,1724382639161,-2111.58,0.00010989,2]
[335610444,1724382639171,-2111.58,0.00010989,2]
[335610446,1724382639180,-165.483194,0.00010989,2]
[335610448,1724382639189,-500.0,0.00010989,2]
[335610450,1724382639198,-500.0,0.00010989,2]
[335610452,1724382639208,-500.0,0.00010989,2]
[335610454,1724382639217,-500.0,0.00010989,2]
[335610456,1724382639226,-500.0,0.00010989,2]
[335610458,1724382639236,-165.483194,0.00010989,2]
[335610460,1724382639246,-165.483194,0.00010989,2]
[335610462,1724382639255,-500.0,0.00010989,2]
[335610464,1724382639264,-500.0,0.00010989,2]
[335610466,1724382639273,-500.0,0.00010989,2]
[335610468,1724382639282,-500.0,0.00010989,2]
[335610470,1724382639291,-500.0,0.00010989,2]
[335610472,1724382639301,-1008.170292,0.00010989,2]
[335610474,1724382639311,-1008.170292,0.00010989,2]
[335610476,1724382639320,-151.0,0.00010989,2]
[335610478,1724382639330,-151.0,0.00010989,2]
[335610480,1724382639339,-1008.170292,0.00010989,2]
[335610482,1724382639348,-1008.170292,0.00010989,2]
[335610484,1724382639357,-500.0,0.00010989,2]
[335610486,1724382639366,-500.0,0.00010989,2]
[335610488,1724382639375,-500.0,0.00010989,2]
[335610490,1724382639384,-500.0,0.00010989,2]
[335610492,1724382639393,-500.0,0.00010989,2]
[335610494,1724382639403,-165.206514,0.00010989,2]
[335610496,1724382639412,-1204.39,0.00010989,2]
[335610498,1724382639421,-1204.39,0.00010989,2]
[335610500,1724382639431,-1204.39,0.00010989,2]
[335610501,1724382639440,-1204.39,0.00010989,2]
[335610503,1724382639449,-1204.39,0.00010989,2]
[335610505,1724382639458,-200.89786,0.00010989,2]
[335610507,1724382639467,-200.89786,0.00010989,2]
[335610509,1724382639476,-500.0,0.00010989,2]
[335610511,1724382639486,-500.0,0.00010989,2]
[335610513,1724382639495,-500.0,0.00010989,2]
[335610514,1724382639504,-500.0,0.00010989,2]
[335610516,1724382639513,-500.0,0.00010989,2]
[335610518,1724382639522,-200.89786,0.00010989,2]
[335610520,1724382639531,-200.89786,0.00010989,2]
[335610522,1724382639540,-500.0,0.00010989,2]
[335610525,1724382639549,-500.0,0.00010989,2]
[335610527,1724382639558,-500.0,0.00010989,2]
[335610529,1724382639569,-500.0,0.00010989,2]
[335610531,1724382639579,-500.0,0.00010989,2]
[335610533,1724382639588,-500.0,0.00010989,2]
[335610534,1724382639597,-500.0,0.00010989,2]
[335610536,1724382639607,-500.0,0.00010989,2]
[335610538,1724382639616,-500.0,0.00010989,2]
[335610540,1724382639626,-500.0,0.00010989,2]
[335610542,1724382639636,-500.0,0.00010989,2]
[335610544,1724382639645,-500.0,0.00010989,2]
[335610546,1724382639654,-500.0,0.00010989,2]
[335610548,1724382639663,-500.0,0.00010989,2]
[335610549,1724382639672,-500.0,0.00010989,2]
[335610551,1724382639682,-589.93,0.00010989,2]
[335610553,1724382639691,-151.0,0.00010989,2]
[335610555,1724382639700,-589.93,0.00010989,2]
[335610557,1724382639709,-151.0,0.00010989,2]
[335610559,1724382639718,-589.93,0.00010989,2]
[335610561,1724382639727,-589.93,0.00010989,2]
[335610563,1724382639736,-589.93,0.00010989,2]
[335610565,1724382639745,-1000.0,0.00010989,2]
[335610567,1724382639754,-1000.0,0.00010989,2]
[335610569,1724382639763,-1000.0,0.00010989,2]
[335610571,1724382639772,-1000.0,0.00010989,2]
[335610573,1724382639781,-1000.0,0.00010989,2]
[335610574,1724382639790,-1000.0,0.00010989,2]
[335610576,1724382639799,-1000.0,0.00010989,2]
[335610578,1724382639808,-1000.0,0.00010989,2]
[335610580,1724382639818,-1000.0,0.00010989,2]
[335610582,1724382639828,-1000.0,0.00010989,2]
[335610584,1724382639838,-1000.0,0.00010989,2]
[335610586,1724382639847,-1000.0,0.00010989,2]
[335610588,1724382639856,-1000.0,0.00010989,2]
[335610590,1724382639864,-1000.0,0.00010989,2]
[335610591,1724382639873,-1000.0,0.00010989,2]
[335610593,1724382639882,-1000.0,0.00010989,2]
[335610595,1724382639891,-1000.0,0.00010989,2]
[335610597,1724382639901,-1000.0,0.00010989,2]
[335610598,1724382639910,-1000.0,0.00010989,2]
[335610600,1724382639918,-1000.0,0.00010989,2]
[335610602,1724382639927,-1000.0,0.00010989,2]
[335610604,1724382639937,-1000.0,0.00010989,2]
[335610606,1724382639948,-1000.0,0.00010989,2]
[335610608,1724382639958,-1000.0,0.00010989,2]
[335610610,1724382639966,-1000.0,0.00010989,2]
[335610612,1724382639975,-1000.0,0.00010989,2]
[335610614,1724382639985,-1000.0,0.00010989,2]
[335610616,1724382639995,-1000.0,0.00010989,2]
[335610618,1724382640004,-1000.0,0.00010989,2]
[335610620,1724382640013,-1000.0,0.00010989,2]
[335610622,1724382640024,-1000.0,0.00010989,2]
[335610624,1724382640033,-1000.0,0.00010989,2]
[335610626,1724382640042,-1000.0,0.00010989,2]
[335610628,1724382640051,-1000.0,0.00010989,2]
[335610630,1724382640061,-1000.0,0.00010989,2]
[335610632,1724382640070,-1000.0,0.00010989,2]
[335610634,1724382640080,-1000.0,0.00010989,2]
[335610636,1724382640089,-1000.0,0.00010989,2]
[335610638,1724382640098,-1000.0,0.00010989,2]
[335610640,1724382640107,-1000.0,0.00010989,2]
[335610642,1724382640115,-1000.0,0.00010989,2]
[335610644,1724382640125,-1000.0,0.00010989,2]
[335610646,1724382640134,-1000.0,0.00010989,2]
[335610648,1724382640143,-1000.0,0.00010989,2]
[335610650,1724382640152,-1000.0,0.00010989,2]
[335610652,1724382640161,-1000.0,0.00010989,2]
[335610653,1724382640170,-1000.0,0.00010989,2]
[335610655,1724382640180,-1000.0,0.00010989,2]
[335610657,1724382640189,-1000.0,0.00010989,2]
[335610659,1724382640198,-1000.0,0.00010989,2]
[335610661,1724382640207,-1000.0,0.00010989,2]
[335610663,1724382640216,-423.51176629,0.00010989,2]
[335610670,1724382640268,-576.48823371,0.00010989,2]
[335610672,1724382640277,-1000.0,0.00010989,2]
[335610674,1724382640286,-1000.0,0.00010989,2]
[335610676,1724382640295,-1000.0,0.00010989,2]
[335610678,1724382640304,-1000.0,0.00010989,2]
[335610680,1724382640314,-1000.0,0.00010989,2]
[335610682,1724382640333,-1000.0,0.00010989,2]
[335610684,1724382640342,-1000.0,0.00010989,2]
[335610686,1724382640352,-1000.0,0.00010989,2]
[335610688,1724382640361,-1000.0,0.00010989,2]
[335610690,1724382640370,-978.52084199,0.00010989,2]
[335610692,1724382640381,-21.47915801,0.00010989,2]
[335610694,1724382640390,-1000.0,0.00010989,2]
[335610696,1724382640399,-1000.0,0.00010989,2]
[335610698,1724382640408,-1000.0,0.00010989,2]
[335610700,1724382640417,-708.9861642,0.00010989,2]
[335610702,1724382640428,-291.0138358,0.00010989,2]
[335610704,1724382640437,-1000.0,0.00010989,2]
[335610706,1724382640446,-132.9861642,0.00010989,2]
[335610708,1724382640457,-276.91061512,0.00010989,2]
[335610710,1724382640468,-590.10322068,0.00010989,2]
[335610712,1724382640477,-626.0552162,0.00010989,2]
[335610714,1724382640488,-373.9447838,0.00010989,2]
[335610716,1724382640497,-629.55576776,0.00010989,2]
[335610719,1724382640517,-1000.0,0.00010983,2]
[335610721,1724382640526,-370.44423224,0.00010989,2]
[335610723,1724382640535,-1000.0,0.00010989,2]
[335610725,1724382640544,-1000.0,0.00010989,2]
[335610727,1724382640553,-1000.0,0.00010989,2]
[335610729,1724382640567,-194.55004464,0.00010989,2]
[335610731,1724382640578,-419.77238971,0.00010989,2]
[335610734,1724382640589,-385.67756565,0.00010989,2]
[335610736,1724382640598,-1000.0,0.00010989,2]
[335610738,1724382640607,-270.90763823,0.00010989,2]
[335610740,1724382640617,-729.09236177,0.00010989,2]
[335610742,1724382640626,-1000.0,0.00010989,2]
[335610743,1724382640636,-1000.0,0.00010989,2]
[335610745,1724382640645,-1000.0,0.00010989,2]
[335610747,1724382640654,-1000.0,0.00010989,2]
[335610749,1724382640664,-1000.0,0.00010989,2]
[335610751,1724382640673,-1000.0,0.00010989,2]
[335610753,1724382640683,-1000.0,0.00010989,2]
[335610755,1724382640691,-81.81286402,0.00010989,2]
[335610757,1724382640703,-721.56421356,0.00010989,2]
[335610759,1724382640714,-196.62292242,0.00010989,2]
[335610761,1724382640723,-299.35790527,0.00010989,2]
[335610763,1724382640733,-340.15000015,0.00010989,2]
[335610781,1724382640920,-360.49209458,0.00010989,2]
[335610783,1724382640930,-1000.0,0.00010989,2]
[335610785,1724382640942,-1000.0,0.00010989,2]
[335610787,1724382640951,-1000.0,0.00010989,2]
[335610789,1724382640961,-1000.0,0.00010989,2]
[335610791,1724382640970,-1000.0,0.00010989,2]
[335610793,1724382640980,-1000.0,0.00010989,2]
[335610795,1724382640990,-1000.0,0.00010989,2]
[335610797,1724382640999,-611.40790543,0.00010989,2]
[335610799,1724382641011,-388.59209457,0.00010989,2]
[335610801,1724382641021,-1000.0,0.00010989,2]
[335610803,1724382641030,-430.61786807,0.00010989,2]
[335610805,1724382641041,-500.0,0.00010989,2]
[335611059,1724382643730,-1000.0,0.00010983,2]
[335611060,1724382643739,-518.0089461,0.00010983,2]
[335611063,1724382643751,-481.9910539,0.00010983,2]
[335611065,1724382643760,-881.28894602,0.00010983,2]
[335611270,1724382645821,-118.71105398,0.00010983,2]
[335611272,1724382645831,-939.99518506,0.00010983,2]
[335611274,1724382645843,-60.00481494,0.00010983,2]
[335611276,1724382645853,-1000.0,0.00010983,2]
[335611278,1724382645863,-307.9869765,0.00010983,2]
[335611294,1724382646050,-313.169,0.00010983,2]
[335611296,1724382646061,-276.345,0.00010983,2]
[335611298,1724382646073,-102.4990235,0.00010983,2]
[335611300,1724382646082,-470.77252885,0.00010983,2]
[335611302,1724382646093,-529.22747115,0.00010983,2]
[335611304,1724382646103,-1000.0,0.00010983,2]
[335611306,1724382646112,-1000.0,0.00010983,2]
[335611307,1724382646121,-1000.0,0.00010983,2]
[335611309,1724382646130,-1000.0,0.00010983,2]
[335611311,1724382646139,-1000.0,0.00010983,2]
[335611313,1724382646149,-1000.0,0.00010983,2]
[335611315,1724382646158,-1000.0,0.00010983,2]
[335611317,1724382646167,-1000.0,0.00010983,2]
[335611319,1724382646177,-1000.0,0.00010983,2]
[335611320,1724382646186,-1000.0,0.00010983,2]
[335611322,1724382646195,-1000.0,0.00010983,2]
[335611324,1724382646205,-1000.0,0.00010983,2]
[335611326,1724382646214,-242.18939926,0.00010987,2]
[335611328,1724382646223,-151.0,0.00010989,2]
[335611330,1724382646232,-151.0,0.00010989,2]
[335611331,1724382646241,-500.0,0.00010989,2]
[335611333,1724382646250,-500.0,0.00010989,2]
[335611335,1724382646259,-500.0,0.00010989,2]
[335611337,1724382646268,-500.0,0.00010989,2]
[335611339,1724382646278,-500.0,0.00010989,2]
[335611341,1724382646287,-69.38213193,0.00010989,2]
[335611342,1724382646295,-1000.0,0.00010989,2]
[335611344,1724382646305,-1000.0,0.00010989,2]
[335611346,1724382646314,-1000.0,0.00010989,2]
[335611348,1724382646323,-1000.0,0.00010989,2]
[335611350,1724382646332,-1000.0,0.00010989,2]
[335611352,1724382646341,-70454.25981293,0.0001099,4]
[335611693,1724382828700,338.72,8.219e-05,2]
[335611694,1724382852909,500.0,8.275e-05,2]
[335611695,1724382904431,200.0,0.00010001,2]
[335611696,1724382924112,6209.26,9.997e-05,2]
[335611698,1724383008899,794.0,9.928e-05,2]
[335611700,1724383030042,812.16594145,9.907e-05,2]
[335611702,1724383046234,763.2,9.992e-05,2]
[335611708,1724383170811,1300.31,9.977e-05,2]
[335611709,1724383199133,252.82,9.966e-05,2]
[335611711,1724383204287,305.85,9.967e-05,2]
[335611716,1724383273484,167.68,9.966e-05,2]
[335611719,1724383295660,1710.12,9.97e-05,2]
[335611730,1724383557290,389.44,9.966e-05,2]
[335611732,1724383582190,321.78,8.219e-05,2]
[335611733,1724383621466,155.16142838,9.962e-05,2]
[335611736,1724383653571,231.4308661,0.00010009,2]
[335611751,1724383793026,348.05356129,0.00010009,2]
[335611752,1724383793057,167.71,9.934e-05,2]
[335611753,1724383831794,-488.6211217,0.00010026,2]
[335611756,1724383831804,-265.85,0.00010156,2]
[335611759,1724383831814,-150.0,0.0001047,2]
[335611763,1724383831824,-12051.76348824,0.00010471,2]
[335611768,1724383831836,-330.40044836,0.00010471,2]
[335611806,1724383831949,-544.57707993,0.00010471,2]
[335611809,1724383831966,-418.54007673,0.00010471,2]
[335611812,1724383831977,-837.82808505,0.00010471,2]
[335611815,1724383831988,-811.05669613,0.00010471,2]
[335611816,1724383831999,-21344.6070462,0.00010471,2]
[335611817,1724383832009,-3205.91352612,0.00010471,2]
[335611818,1724383832019,-10540.75207733,0.00010471,2]
[335611819,1724383832028,-321.78,0.00010474,2]
[335611820,1724383832037,-3876.44792318,0.00010566,2]
[335611821,1724383832047,-1276.21844793,0.00010699,2]
[335611822,1724383832056,-3944.21434876,0.00010699,2]
[335611823,1724383832065,-879.35374974,0.00010713,2]
[335611824,1724383832074,-532.58916315,0.00010861,2]
[335611825,1724383832083,-485.95604284,0.00010861,2]
[335611826,1724383832093,-163.09350616,0.00010862,2]
[335611827,1724383832103,-155.84915535,0.00010862,2]
[335611828,1724383832112,-654.121857,0.00010862,2]
[335611829,1724383832121,-500.0,0.0001088,2]
[335611830,1724383832130,-1366.8305,0.00010883,2]
[335611831,1724383832140,-1268.32306098,0.00010888,2]
[335611832,1724383832150,-270.75661,0.00010888,2]
[335611833,1724383832159,-155.0,0.00010888,2]
[335611834,1724383832169,-219.05448022,0.00010888,2]
[335611835,1724383832179,-314.21787495,0.00010888,2]
[335611836,1724383832188,-155.60217367,0.0001089,2]
[335611837,1724383832198,-366.8793,0.0001089,2]
[335611838,1724383832207,-266.6719,0.0001089,2]
[335611839,1724383832217,-471.6136,0.0001089,2]
[335611840,1724383832227,-499.99,0.0001089,2]
[335611841,1724383832236,-1986.98422529,0.00010899,2]
[335611842,1724383832245,-402.53031244,0.00010899,2]
[335611843,1724383832255,-329.57850842,0.00010899,2]
[335611844,1724383832264,-257.60984249,0.000109,2]
[335611845,1724383832273,-257.60984248,0.000109,2]
[335611846,1724383832282,-257.60984248,0.000109,2]
[335611847,1724383832291,-852.35,0.000109,2]
[335611848,1724383832305,-257.60984248,0.000109,2]
[335611849,1724383832315,-257.60984248,0.000109,2]
[335611850,1724383832324,-257.60984248,0.000109,2]
[335611851,1724383832333,-257.60984248,0.000109,2]
[335611852,1724383832343,-257.60984248,0.000109,2]
[335611853,1724383832352,-223.49375271,0.00010949,2]
[335611854,1724383832361,-150.45,0.00010959,2]
[335611855,1724383832372,-250.0,0.00010959,2]
[335611856,1724383832382,-629.05909233,0.00010979,2]
[335611857,1724383832391,-233.0,0.0001098,2]
[335611858,1724383832400,-378.2789256,0.00010983,2]
[335611859,1724383832409,-4135.2334068,0.00010983,2]
[335611860,1724383832418,-1983.5724051,0.00010983,2]
[335611861,1724383832427,-356.0,0.00010983,2]
[335611862,1724383832437,-242.18939926,0.00010988,2]
[335611863,1724383832446,-5885.817,0.00010988,2]
[335611864,1724383832455,-395.985,0.00010988,2]
[335611865,1724383832466,-1684.109,0.00010988,2]
[335611866,1724383832477,-1212.915,0.00010988,2]
[335611867,1724383832487,-21918.449,0.00010988,2]
[335611868,1724383832496,-539.15486565,0.00010989,2]
[335611869,1724383832506,-500.0,0.00010989,2]
[335611870,1724383832515,-500.0,0.00010989,2]
[335611871,1724383832525,-500.0,0.00010989,2]
[335611872,1724383832535,-500.0,0.00010989,2]
[335611873,1724383832544,-500.0,0.00010989,2]
[335611874,1724383832553,-500.0,0.00010989,2]
[335611875,1724383832562,-500.0,0.00010989,2]
[335611876,1724383832572,-500.0,0.00010989,2]
[335611877,1724383832581,-500.0,0.00010989,2]
[335611878,1724383832591,-500.0,0.00010989,2]
[335611879,1724383832600,-500.0,0.00010989,2]
[335611880,1724383832610,-151.0,0.00010989,2]
[335611881,1724383832619,-152.061524,0.00010989,2]
[335611882,1724383832628,-152.645557,0.00010989,2]
[335611883,1724383832637,-625.34,0.00010989,2]
[335611884,1724383832646,-625.34,0.00010989,2]
[335611885,1724383832656,-625.34,0.00010989,2]
[335611887,1724383832665,-625.34,0.00010989,2]
[335611889,1724383832674,-625.34,0.00010989,2]
[335611891,1724383832683,-151.0,0.00010989,2]
[335611893,1724383832692,-151.0,0.00010989,2]
[335611895,1724383832702,-151.0,0.00010989,2]
[335611897,1724383832711,-161.291145,0.00010989,2]